bitfinex/quotes_ETHUSD_20250107
["timestamp","ask_amount","ask_price","bid_price","bid_amount"]
[1736270138094,5.7752,3463.3,3463.0,35.0]
[1736270138095,1.5031,3463.2,3463.0,35.0]
[1736270138303,2.88758,3463.1,3462.9,0.01639245]
[1736270138505,8.66278,3463.1,3462.9,0.01639245]
[1736270138709,9.9775773,3463.1,3462.9,0.01639245]
[1736270139408,12.9775773,3463.1,3463.0,0.0075]
[1736270139610,6.43766,3463.0,3462.9,0.01639245]
[1736270139835,13.69176,3463.0,3462.9,0.01639245]
[1736270140801,10.2541,3463.0,3462.9,0.01639245]
[1736270141101,8.7752,3463.0,3462.9,0.02389245]
[1736270141404,8.24084828,3463.0,3462.9,0.02389245]
[1736270142435,5.7752,3463.0,3462.9,0.02389245]
[1736270143695,8.66286,3463.0,3462.9,0.02389245]
[1736270144093,5.7752,3463.0,3462.9,0.02389245]
[1736270144515,10.25816,3463.0,3462.9,0.02389245]
[1736270145518,7.3705,3463.0,3462.9,0.02389245]
[1736270145897,5.7752,3463.0,3462.9,0.02389245]
[1736270146103,5.7752,3463.0,3462.9,0.03139245]
[1736270146316,5.7752,3463.0,3462.9,0.3262094]
[1736270146503,5.7752,3463.0,3462.9,0.02389245]
[1736270147210,10.20916,3463.0,3462.9,0.02389245]
[1736270147530,7.3215,3463.0,3462.9,0.02389245]
[1736270148062,5.7752,3463.0,3462.9,0.02389245]
[1736270148410,5.7752,3463.0,3462.9,0.03139245]
[1736270148744,5.7752,3463.0,3462.9,0.32332269]
[1736270148942,5.7752,3463.0,3462.9,4.72427269]
[1736270150567,5.7752,3463.0,3462.9,7.45436568]
[1736270151245,4.84e-06,3463.0,3462.9,11.00436568]
[1736270151449,4.84e-06,3463.0,3462.9,11.54011508]
[1736270151621,1.19255381,3464.6,3463.2,0.015]
[1736270151811,0.04393439,3464.5,3464.4,0.015]
[1736270152347,1.52863439,3464.5,3463.6,1.5054]
[1736270152534,4.41507439,3464.5,3463.6,1.5054]
[1736270152750,0.0075,3464.3,3463.7,0.015]
[1736270153378,0.0075,3464.1,3463.3,1.5554]
[1736270153512,0.0075,3464.1,3463.4,0.444287]
[1736270153722,0.0075,3464.1,3463.4,2.88728]
[1736270154124,0.0075,3463.9,3463.5,0.0075]
[1736270154358,0.03643439,3464.0,3463.6,0.0075]
[1736270154530,6.15174239,3465.2,3463.3,1.5479]
[1736270154531,1.5091,3464.8,3464.0,0.0075]
[1736270155561,0.0075,3464.7,3464.0,4.39959446]
[1736270155728,0.0075,3464.7,3464.0,4.83955391]
[1736270156161,0.0075,3464.7,3464.0,1.95272391]
[1736270156331,0.0075,3464.7,3464.2,0.015]
[1736270156659,0.252,3465.4,3464.2,0.015]
[1736270156660,1.19255381,3465.5,3464.6,0.0075]
[1736270157027,0.0075,3465.4,3464.6,0.0075]
[1736270157475,1.5032,3465.3,3464.4,0.015]
[1736270157683,1.5032,3465.3,3464.7,0.015]
[1736270157684,0.0075,3465.2,3464.7,0.015]
[1736270158081,0.0075,3465.2,3464.5,0.015]
[1736270158259,0.27782538,3465.2,3464.3,1.533]
[1736270158455,1.5032,3465.3,3464.3,4.41951]
[1736270158762,1.5032,3465.3,3464.4,0.015]
[1736270158954,0.0075,3465.2,3464.4,0.015]
[1736270159270,0.0075,3465.2,3464.7,0.015]
[1736270159488,0.0075,3465.5,3464.7,0.015]
[1736270159666,0.0075,3465.5,3464.9,0.015]
[1736270159879,0.0075,3465.5,3465.1,0.015]
[1736270160076,2.69575381,3465.9,3465.1,0.015]
[1736270160284,1.19255381,3465.9,3465.1,0.4872618]
[1736270160594,4.07781381,3465.9,3465.2,1.533]
[1736270160800,2.88543,3465.7,3464.8,1.533]
[1736270161106,1.5032,3465.9,3464.9,0.015]
[1736270161252,4.38846,3465.9,3464.9,3.05586]
[1736270161455,4.38846,3465.9,3464.9,0.015]
[1736270161456,3.26584239,3465.6,3464.9,0.015]
[1736270161694,3.26584239,3465.6,3464.4,2.88642]
[1736270161990,3.26584239,3465.6,3464.0,5.88683]
[1736270161991,2.88558,3465.5,3464.6,0.015]
[1736270162371,3.0,3465.5,3464.5,1.5397]
[1736270162692,1.4704,3465.4,3464.5,1.5397]
[1736270162902,2.88591,3465.2,3464.2,1.5397]
[1736270163057,2.88592,3465.1,3464.3,0.0075]
[1736270163257,2.88592,3465.1,3464.3,0.015]
[1736270163687,2.88577,3465.3,3464.3,0.04386215]
[1736270163999,0.252,3465.5,3464.3,0.04386215]
[1736270164291,0.252,3465.5,3464.7,0.015]
[1736270164507,3.13766,3465.5,3464.7,0.015]
[1736270164795,3.13766,3465.5,3464.5,0.015]
[1736270165043,2.88567,3465.4,3464.5,0.015]
[1736270165357,0.03766982,3465.3,3464.5,0.015]
[1736270165565,2.88607,3465.0,3464.2,1.5397]
[1736270165763,2.88615,3464.9,3464.2,1.982359]
[1736270165980,2.88615,3464.9,3464.2,1.5397]
[1736270166182,1.5043,3465.2,3464.3,0.04386233]
[1736270166183,0.03766982,3464.8,3464.3,0.04386233]
[1736270166560,0.252,3465.5,3464.3,0.04386233]
[1736270166802,0.03766982,3464.7,3464.6,0.0075]
[1736270167101,5.88568,3465.4,3464.7,0.0075]
[1736270167392,6.94900179,3465.4,3464.7,0.0075]
[1736270167614,0.03766982,3465.3,3464.5,0.015]
[1736270167821,2.88604,3465.0,3464.5,0.015]
[1736270168126,2.88604,3465.0,3464.5,0.0075]
[1736270168127,0.03901695,3464.9,3464.5,0.0075]
[1736270168661,0.33152265,3464.9,3464.5,0.0075]
[1736270169175,0.03901695,3464.9,3464.5,0.0075]
[1736270169590,2.88595,3465.1,3464.5,0.0075]
[1736270169764,0.03905223,3464.8,3464.5,0.0075]
[1736270169966,2.8864,3464.6,3463.8,1.4903]
[1736270170179,2.88643,3464.5,3463.8,1.4903]
[1736270170373,2.88645,3464.5,3463.8,1.4903]
[1736270170717,0.03905223,3464.4,3463.9,0.0075]
[1736270171314,2.88603,3465.0,3464.1,0.015]
[1736270171622,1.19255381,3465.1,3464.1,0.015]
[1736270171778,0.03878764,3464.9,3464.4,0.0075]
[1736270172113,0.03878764,3464.8,3464.7,0.0075]
[1736270172278,0.03878764,3464.8,3464.7,4.71751811]
[1736270172475,1.19255381,3465.1,3464.7,4.70251811]
[1736270172699,0.0389758,3464.8,3464.7,1.5225]
[1736270173099,2.88569,3465.4,3464.7,1.5225]
[1736270173325,2.88569,3465.4,3464.8,0.015]
[1736270173539,0.0389758,3465.3,3464.8,0.015]
[1736270174100,1.5949,3465.4,3464.2,1.4708]
[1736270174433,3.0,3465.0,3464.2,1.4708]
[1736270174630,2.1819658,3465.4,3464.3,0.04386195]
[1736270174937,0.03924034,3465.3,3464.3,2.90158]
[1736270175137,0.51069361,3465.2,3464.3,2.90158]
[1736270175302,0.54992219,3465.2,3464.3,2.90158]
[1736270176547,0.54992219,3465.2,3464.3,0.015]
[1736270176548,2.88618,3464.8,3464.3,0.015]
[1736270176838,2.88618,3464.8,3464.3,0.0075]
[1736270177000,0.03913453,3464.7,3464.4,0.0075]
[1736270177200,3.0,3465.1,3464.4,0.0075]
[1736270177445,2.88608,3464.9,3463.8,1.5606]
[1736270177615,3.0,3464.9,3463.8,1.5606]
[1736270177806,2.88637,3464.6,3463.9,0.0075]
[1736270178141,2.88637,3464.6,3463.9,0.015]
[1736270178313,3.0,3464.2,3463.0,1.5606]
[1736270178514,3.0,3463.9,3463.0,1.5606]
[1736270178714,3.0,3463.6,3462.9,0.01639245]
[1736270178915,2.88741,3463.4,3462.9,0.01639245]
[1736270179116,5.88746,3463.3,3462.9,0.01639245]
[1736270179445,5.92621236,3463.3,3462.9,0.01639245]
[1736270179737,0.03875236,3463.3,3462.9,0.01639245]
[1736270179937,0.03875236,3463.3,3463.0,0.0075]
[1736270180365,4.37413,3463.9,3463.0,0.043875]
[1736270180570,0.03725247,3463.2,3463.0,0.015]
[1736270180770,3.0,3463.7,3463.0,0.015]
[1736270181137,0.03725247,3463.6,3463.0,0.015]
[1736270181538,2.92449247,3463.6,3463.0,0.015]
[1736270181772,2.88724,3463.6,3463.0,0.015]
[1736270181950,2.88734,3463.4,3462.9,0.01639245]
[1736270182335,2.88719,3463.6,3463.0,0.015]
[1736270182540,0.03725247,3463.3,3463.0,0.04387589]
[1736270182949,2.88703,3463.8,3463.0,0.04387589]
[1736270183156,0.03725247,3463.2,3463.0,0.04387589]
[1736270183435,0.03725247,3463.1,3463.0,0.04387589]
[1736270183631,2.88703,3463.8,3463.0,0.33868272]
[1736270183851,2.88703,3463.8,3463.0,0.04387589]
[1736270184077,0.03725247,3463.7,3463.0,0.04387589]
[1736270184431,0.03725247,3463.7,3463.0,0.04387291]
[1736270184861,0.03725247,3463.7,3463.0,0.015]
[1736270185457,2.88733,3463.5,3463.0,0.015]
[1736270185660,0.32598547,3463.4,3462.9,0.01639245]
[1736270185865,5.88766,3463.0,3462.9,0.01639245]
[1736270186079,5.92493601,3463.0,3462.9,0.01639245]
[1736270186788,3.03727601,3463.0,3462.9,0.01639245]
[1736270186938,0.03727601,3463.0,3462.9,0.01639245]
[1736270187255,1.5938,3463.6,3463.0,0.0075]
[1736270187655,4.19255381,3463.5,3463.0,0.0075]
[1736270187866,1.19255381,3463.5,3463.0,0.015]
[1736270188780,2.88717,3463.6,3463.0,0.015]
[1736270189486,2.88702,3463.8,3463.0,0.015]
[1736270189773,3.0,3463.6,3463.0,0.015]
[1736270191802,2.88745,3463.3,3463.0,0.0075]
[1736270192404,2.8875,3463.2,3462.9,0.01639245]
[1736270192801,6.660409,3463.6,3462.9,0.01639245]
[1736270193003,2.88736,3463.4,3463.0,0.0075]
[1736270193159,3.773189,3463.6,3463.0,0.0075]
[1736270193361,2.88748,3463.3,3463.0,0.0075]
[1736270193696,0.7041814,3463.5,3462.9,0.01639245]
[1736270193697,1.5223,3463.2,3462.9,0.01639245]
[1736270194070,2.88766,3463.1,3463.0,0.0075]
[1736270194275,5.88742,3463.3,3463.0,0.0075]
[1736270194675,0.251,3463.5,3463.0,0.015]
[1736270194864,1.44355381,3463.5,3463.0,0.015]
[1736270195284,2.8874,3463.4,3463.0,0.015]
[1736270195596,0.03695233,3463.3,3463.0,0.015]
[1736270195787,2.8875,3463.2,3463.0,0.0075]
[1736270196102,0.03703472,3463.1,3463.0,0.0075]
[1736270196304,2.88743,3463.3,3463.0,0.0075]
[1736270196500,0.03703472,3463.2,3463.0,0.0075]
[1736270196702,2.8874,3463.4,3463.0,0.0075]
[1736270196887,0.03703472,3463.3,3463.0,0.0075]
[1736270197224,0.03703472,3463.3,3463.2,0.0075]
[1736270197369,3.41853819,3463.3,3463.2,0.0075]
[1736270197564,4.92533819,3463.3,3463.2,0.0075]
[1736270197798,4.92533819,3463.3,3463.0,0.0075]
[1736270198103,2.88758,3463.1,3463.0,0.0075]
[1736270198325,2.92462649,3463.1,3463.0,0.0075]
[1736270199281,0.03704649,3463.1,3463.0,0.0075]
[1736270199483,2.88754,3463.2,3463.0,0.0075]
[1736270199688,0.03704649,3463.1,3463.0,0.0075]
[1736270200681,2.92462649,3463.1,3463.0,0.0075]
[1736270200880,2.88766,3463.0,3462.9,0.01639245]
[1736270201083,2.88766,3463.0,3462.9,0.02389245]
[1736270201282,0.03704649,3463.0,3462.9,0.02389245]
[1736270201497,1.5068,3463.3,3463.0,0.0075]
[1736270201705,0.03704649,3463.2,3463.0,0.0075]
[1736270201907,2.04358414,3463.8,3463.0,2.90265]
[1736270202211,0.03682872,3463.5,3463.2,1.5642]
[1736270202377,0.03682872,3463.5,3463.4,2.90233]
[1736270202573,0.03682872,3463.5,3463.4,4.47003]
[1736270202799,0.03682872,3463.5,3463.4,7.47003]
[1736270203016,0.03682872,3463.5,3463.4,8.05903882]
[1736270203174,2.53e-06,3463.7,3463.6,1.5677]
[1736270203375,2.39132685,3464.0,3463.9,0.015]
[1736270203615,2.39132685,3464.0,3463.9,4.40091]
[1736270204004,1.78860593,3465.2,3464.1,0.015]
[1736270204313,1.78860593,3465.2,3464.9,0.015]
[1736270204615,1.78860593,3465.2,3465.1,2.90091]
[1736270204800,1.78860593,3465.2,3465.1,4.5204647]
[1736270205118,1.78860593,3465.2,3465.1,4.49161]
[1736270205621,2.39132685,3466.3,3465.2,0.015]
[1736270206285,2.39132685,3466.3,3465.2,0.04385214]
[1736270206502,2.39132685,3466.3,3465.4,0.015]
[1736270206725,2.39132685,3466.3,3465.4,0.04385132]
[1736270207022,3.0,3466.4,3465.4,2.90065]
[1736270207227,3.0,3466.4,3465.4,0.015]
[1736270207388,2.88486,3466.4,3465.4,0.015]
[1736270207720,2.88486,3466.4,3465.4,0.48613054]
[1736270207908,3.26363714,3466.6,3465.4,0.48613054]
[1736270207909,3.0,3466.5,3465.4,0.48613054]
[1736270208085,2.88492,3466.3,3465.4,0.48613054]
[1736270208289,2.88492,3466.3,3465.4,0.015]
[1736270208626,2.88492,3466.3,3465.6,0.015]
[1736270208928,2.88492,3466.3,3465.6,0.0075]
[1736270209286,2.88492,3466.3,3465.5,0.0075]
[1736270209723,2.88492,3466.3,3465.4,0.015]
[1736270210792,0.03705353,3466.2,3465.4,0.015]
[1736270210995,0.03705353,3466.2,3465.4,0.48613054]
[1736270211323,0.03705353,3466.2,3465.4,0.015]
[1736270212230,3.30069067,3466.2,3465.4,0.015]
[1736270212432,2.88541,3465.7,3464.4,1.506]
[1736270212731,2.88556,3465.6,3464.6,0.015]
[1736270212927,2.92261353,3465.6,3464.6,0.45862585]
[1736270213103,2.92261353,3465.6,3464.6,0.45112585]
[1736270213300,2.88563,3465.5,3464.6,0.45112585]
[1736270213726,3.26363714,3465.8,3464.6,0.45112585]
[1736270213727,0.03705353,3465.4,3464.6,0.45112585]
[1736270213917,7.52939,3466.1,3465.0,0.0075]
[1736270214124,0.03705353,3466.0,3465.1,0.0075]
[1736270214512,2.88501,3466.2,3465.1,0.0075]
[1736270214715,2.88501,3466.2,3465.2,0.0075]
[1736270214716,0.03864749,3466.1,3465.2,0.0075]
[1736270215136,0.03864749,3466.1,3465.4,0.0075]
[1736270215615,0.03864749,3466.1,3465.6,0.0075]
[1736270215817,3.30228463,3466.1,3465.7,0.0075]
[1736270216016,2.88528,3465.9,3465.7,0.0075]
[1736270216224,3.30228463,3466.1,3465.3,0.015]
[1736270216225,2.88533,3465.8,3465.3,0.015]
[1736270216720,0.038671,3465.7,3465.3,0.015]
[1736270217051,2.88533,3465.8,3465.3,0.015]
[1736270217354,3.0,3465.9,3465.3,0.015]
[1736270217553,0.038671,3465.7,3465.3,0.015]
[1736270217703,3.0,3465.9,3465.3,0.015]
[1736270217905,0.038671,3465.8,3465.3,0.015]
[1736270218404,0.038671,3465.8,3465.3,2.90504403]
[1736270218603,2.88501,3466.2,3465.3,2.90504403]
[1736270218830,2.88485,3466.4,3465.3,2.90504403]
[1736270219334,0.038671,3466.3,3465.5,0.015]
[1736270219521,3.0,3466.4,3465.7,0.015]
[1736270219835,5.88485,3466.4,3465.7,0.015]
[1736270220433,5.88485,3466.4,3465.9,0.015]
[1736270220434,0.0075,3466.2,3465.9,0.015]
[1736270220796,0.0075,3466.2,3465.7,0.015]
[1736270221001,0.0075,3466.0,3465.3,1.5585]
[1736270221197,2.88528,3465.9,3465.4,35.0]
[1736270221399,0.0075,3466.0,3465.4,0.0075]
[1736270221649,0.03869453,3465.8,3465.4,0.0363548]
[1736270221940,0.04619453,3465.7,3465.6,0.0075]
[1736270222141,0.0075,3465.7,3465.6,0.0075]
[1736270222329,0.0075,3465.7,3465.6,0.04385359]
[1736270222906,0.0075,3465.7,3465.6,35.04385359]
[1736270223239,2.88486,3466.4,3465.6,35.0075]
[1736270223442,2.88486,3466.4,3465.6,37.8686894]
[1736270223612,0.0075,3466.3,3465.6,37.8686894]
[1736270223813,0.0075,3465.7,3465.3,1.5585]
[1736270224140,0.0075,3465.4,3464.7,1.5624]
[1736270224338,0.0075,3465.4,3464.8,35.0]
[1736270224573,0.0075,3465.4,3464.9,0.59939472]
[1736270224862,0.03878267,3465.6,3465.1,0.0075]
[1736270225003,0.0075,3466.0,3465.1,0.0075]
[1736270225218,0.0075,3465.4,3465.2,35.0]
[1736270225418,0.0075,3464.8,3464.3,1.5589]
[1736270225887,0.03847707,3464.7,3464.3,1.5589]
[1736270226183,0.0075,3464.6,3464.4,35.0]
[1736270226388,0.04597119,3464.6,3464.4,35.0]
[1736270226585,3.251,3465.2,3464.4,35.0]
[1736270226586,0.0075,3465.0,3464.4,35.0]
[1736270226764,0.0075,3464.8,3464.4,35.0]
[1736270226971,2.89374,3464.8,3464.4,35.0]
[1736270227341,0.0075,3464.6,3464.5,0.0075]
[1736270228041,0.04597119,3464.6,3464.5,0.0075]
[1736270228791,0.0075,3464.8,3464.5,0.0075]
[1736270229133,0.03847119,3464.7,3464.5,2.8761894]
[1736270229360,1.5353,3465.4,3464.5,0.04386051]
[1736270229574,4.42103,3465.4,3464.5,0.04386051]
[1736270229771,0.04504241,3465.3,3464.7,0.015]
[1736270230173,0.04504241,3465.3,3464.9,0.015]
[1736270230692,0.0075,3465.1,3464.7,0.015]
[1736270230869,0.0075,3465.0,3463.9,1.6037]
[1736270231079,0.04509533,3465.0,3463.9,1.6037]
[1736270231472,2.93109533,3465.0,3464.5,0.0075]
[1736270231839,0.04509533,3465.0,3464.6,0.0075]
[1736270232593,0.04509533,3465.0,3464.8,0.0075]
[1736270233189,0.04509533,3465.0,3464.9,35.015]
[1736270233502,0.03759533,3465.0,3464.9,35.015]
[1736270233707,2.73081664,3465.4,3464.9,35.0075]
[1736270234018,2.88591,3465.2,3464.9,35.0]
[1736270234315,3.0,3465.1,3464.9,35.0]
[1736270234620,0.0378011,3465.0,3464.9,35.0075]
[1736270235115,3.0,3465.4,3465.0,0.0075]
[1736270235855,0.0075,3465.3,3465.0,0.0075]
[1736270236445,2.73081664,3466.0,3465.3,0.0075]
[1736270236744,3.0075,3465.7,3465.3,0.0075]
[1736270237027,0.0075,3465.7,3465.3,0.0075]
[1736270237328,5.89292,3465.7,3465.3,0.0075]
[1736270237549,3.0075,3465.9,3465.3,0.0075]
[1736270237729,5.89275,3465.9,3465.3,0.03635588]
[1736270238052,0.0075,3465.9,3465.3,0.49136833]
[1736270238344,0.0075,3466.0,3465.3,0.49136833]
[1736270238548,2.89268,3466.0,3465.3,0.49136833]
[1736270238718,2.89268,3466.0,3465.5,0.0075]
[1736270238904,0.0075,3466.1,3465.5,0.0075]
[1736270239124,2.88519,3466.0,3465.5,0.0075]
[1736270239444,2.88519,3466.0,3465.2,1.6451]
[1736270239445,5.885,3466.2,3465.4,0.0075]
[1736270239650,0.0075,3466.0,3465.6,35.0]
[1736270239807,3.0,3466.2,3465.7,0.0075]
[1736270240146,2.73081664,3466.6,3465.7,0.0075]
[1736270240382,3.0,3466.3,3465.7,0.03635372]
[1736270240542,0.0075,3466.2,3465.9,0.0075]
[1736270240882,0.0075,3466.2,3465.8,1.6125]
[1736270241037,0.0075,3466.3,3465.8,1.6125]
[1736270241398,0.0075,3466.3,3465.6,35.0]
[1736270241399,3.0,3466.3,3465.6,35.0]
[1736270241545,0.0075,3466.0,3465.7,0.0075]
[1736270241749,0.03904707,3465.9,3465.7,0.0075]
[1736270242052,2.88516,3466.1,3465.7,0.0075]
[1736270242252,0.03904707,3465.8,3465.7,0.0075]
[1736270242474,0.0075,3466.0,3465.7,0.0075]
[1736270242664,0.03904707,3465.8,3465.7,0.0075]
[1736270242998,3.0,3466.3,3465.7,0.0075]
[1736270242999,0.0075,3466.2,3465.7,0.0075]
[1736270243139,0.0075,3466.2,3465.7,2.8686894]
[1736270243673,0.0075,3466.5,3465.9,0.0075]
[1736270244082,0.0075,3466.3,3465.9,0.02884818]
[1736270244290,0.0075,3466.3,3465.9,1.5139]
[1736270245002,0.0075,3466.1,3465.9,1.5139]
[1736270245354,0.0075,3466.1,3464.9,5.61688664]
[1736270245355,0.0075,3466.1,3465.2,1.5187]
[1736270245747,0.0075,3466.1,3465.3,35.0075]
[1736270245748,0.0075,3465.9,3465.3,35.0075]
[1736270246388,0.0075,3466.1,3465.3,35.0075]
[1736270246571,0.0075,3466.1,3465.5,0.0075]
[1736270247153,0.03917044,3466.0,3465.7,0.0075]
[1736270247349,2.89286,3465.8,3465.2,1.5187]
[1736270247691,0.0075,3465.6,3465.3,0.015]
[1736270247888,0.0075,3465.6,3465.3,35.0075]
[1736270248189,0.0075,3465.4,3465.3,35.015]
[1736270248549,3.0075,3465.9,3465.3,35.015]
[1736270248755,0.0075,3465.7,3465.3,35.015]
[1736270249181,0.0075,3465.5,3465.3,35.015]
[1736270249377,0.0075,3465.5,3465.3,37.8761894]
[1736270249783,0.0075,3465.9,3465.3,37.8761894]
[1736270250091,0.0075,3465.9,3465.4,0.02885513]
[1736270250336,0.0075,3465.7,3465.3,2.8761894]
[1736270250462,0.0075,3465.7,3465.3,0.015]
[1736270250782,0.0075,3465.5,3465.3,2.92959229]
[1736270251091,0.03899419,3465.6,3465.5,0.0075]
[1736270251255,1.18925483,3466.2,3465.7,0.0075]
[1736270251658,0.0075,3466.0,3465.9,0.0075]
[1736270251955,0.0075,3466.0,3465.9,0.1667]
[1736270252190,0.03909407,3466.0,3465.9,0.1667]
[1736270252489,1.18925483,3466.6,3465.9,0.1667]
[1736270252893,0.03909407,3466.5,3466.4,4.42863]
[1736270253270,0.03909407,3466.5,3466.4,4.45747376]
[1736270253468,0.03909407,3466.5,3466.4,5.4648068]
[1736270254018,0.03909407,3466.5,3466.4,6.05497167]
[1736270254217,0.03909407,3466.5,3466.4,6.02612791]
[1736270254418,0.0075,3466.7,3466.6,4.44087]
[1736270254715,0.0075,3466.7,3466.6,7.17168664]
[1736270254859,0.0075,3466.7,3466.6,8.3370881]
[1736270255308,0.03941717,3466.7,3466.6,8.3370881]
[1736270255535,1.18925483,3466.8,3466.7,4.44838]
[1736270255736,4.18925483,3468.3,3467.2,2.88409]
[1736270255959,0.0075,3468.2,3467.5,0.0075]
[1736270256165,0.0075,3468.2,3467.5,0.19559864]
[1736270256760,0.0075,3468.2,3467.5,0.16676351]
[1736270256905,0.0075,3468.2,3467.5,0.0075]
[1736270257409,2.88318,3468.4,3467.5,0.0075]
[1736270257630,3.0075,3468.3,3467.5,0.0075]
[1736270258142,0.0075,3468.3,3467.5,0.0075]
[1736270260015,2.88318,3468.4,3467.5,0.0075]
[1736270260016,0.0075,3467.8,3467.5,0.0075]
[1736270260365,0.296614,3467.8,3466.9,0.56467369]
[1736270260509,0.296614,3467.8,3466.8,1.5736]
[1736270260510,0.0075,3467.5,3466.8,1.5736]
[1736270260718,0.0075,3467.5,3466.9,0.0075]
[1736270261022,0.0075,3466.8,3466.4,1.5736]
[1736270261235,0.0075,3466.6,3465.7,2.97961664]
[1736270261436,0.0075,3466.6,3465.9,1.5736]
[1736270261763,0.0075,3466.8,3466.1,0.0075]
[1736270261969,0.0075,3466.8,3466.0,0.0075]
[1736270262418,0.0075,3466.8,3466.0,0.015]
[1736270262620,0.0075,3466.8,3466.0,0.0075]
[1736270262896,0.0075,3466.8,3466.0,1.41355852]
[1736270263272,0.0075,3467.0,3466.2,0.0075]
[1736270263472,2.89186,3467.0,3466.2,0.0075]
[1736270263677,2.89186,3467.0,3466.3,0.0075]
[1736270263974,0.0075,3467.0,3466.3,0.0075]
[1736270264150,1.6133,3467.7,3466.5,0.015]
[1736270264354,3.0,3467.6,3466.7,0.015]
[1736270264590,0.25,3467.9,3466.9,0.015]
[1736270264891,0.25,3467.9,3467.2,0.015]
[1736270265185,0.0075,3467.8,3467.2,0.04383646]
[1736270265473,0.0075,3467.8,3467.6,0.015]
[1736270266142,0.25,3467.9,3467.6,0.04383648]
[1736270266355,0.25,3467.9,3467.6,0.015]
[1736270266694,0.0075,3468.3,3467.6,0.04383542]
[1736270266885,3.0,3468.2,3467.6,0.04383542]
[1736270267036,0.0075,3468.3,3467.6,0.04383542]
[1736270267437,0.0075,3468.3,3467.6,0.015]
[1736270268918,0.0075,3468.3,3467.6,0.4910975]
[1736270269061,2.88294,3468.7,3467.6,0.4910975]
[1736270269399,2.88294,3468.7,3467.6,0.015]
[1736270269540,0.0075,3468.6,3467.6,2.92766143]
[1736270269740,0.0075,3468.6,3467.6,2.89883]
[1736270270295,1.5569,3468.8,3468.0,0.015]
[1736270270296,0.0075,3468.4,3468.0,0.015]
[1736270270546,0.0075,3468.4,3468.0,0.04383143]
[1736270270949,0.0075,3468.2,3468.0,0.04383143]
[1736270271434,0.04914239,3468.1,3468.0,0.48798657]
[1736270271656,0.04914239,3468.1,3468.0,0.04383143]
[1736270271870,0.0075,3468.1,3468.0,5.12876081]
[1736270273755,2.88243,3469.3,3468.2,0.015]
[1736270273961,0.0075,3469.1,3468.2,0.0075]
[1736270274110,0.0075,3469.1,3468.3,0.51165294]
[1736270274325,0.0075,3468.9,3468.4,0.015]
[1736270274753,0.04164239,3468.8,3468.4,0.04382693]
[1736270274920,0.0075,3469.1,3468.4,0.04382693]
[1736270275268,0.0075,3468.9,3468.4,0.04382693]
[1736270275433,0.0075,3468.9,3468.4,0.55365592]
[1736270275630,3.5092019,3469.9,3468.6,0.015]
[1736270275943,0.0075,3469.5,3468.8,0.015]
[1736270276256,3.0,3469.4,3468.8,0.015]
[1736270276431,2.88236,3469.4,3468.8,0.16661]
[1736270276612,0.0075,3469.3,3468.8,0.19543487]
[1736270277016,0.0075,3469.3,3468.8,0.16661]
[1736270277981,0.55,3469.6,3468.4,1.593]
[1736270278154,2.88245,3469.3,3468.5,0.015]
[1736270278353,0.55,3469.6,3468.5,0.015]
[1736270278354,0.0075,3469.1,3468.5,0.04382705]
[1736270279357,0.0075,3469.1,3468.5,0.015]
[1736270280476,0.0075,3469.1,3468.5,0.04382707]
[1736270280634,3.0,3469.3,3468.7,0.015]
[1736270280838,2.88242,3469.3,3468.7,0.015]
[1736270281031,0.5575,3469.2,3468.7,0.015]
[1736270281358,0.0075,3469.2,3468.7,0.015]
[1736270281659,0.0075,3469.6,3468.7,0.015]
[1736270281886,3.5575,3469.4,3468.7,0.015]
[1736270282100,3.5575,3469.4,3468.8,1.6371]
[1736270282248,3.5575,3469.4,3468.9,0.015]
[1736270282671,0.0075,3469.3,3468.9,0.015]
[1736270283595,1.5044,3469.7,3468.9,0.015]
[1736270283746,1.29855855,3471.3,3468.9,0.015]
[1736270283747,1.6453,3470.1,3469.1,0.015]
[1736270283947,1.6453,3470.1,3469.3,0.015]
[1736270284294,0.0075,3470.0,3469.3,0.015]
[1736270284651,0.0075,3470.1,3469.3,0.015]
[1736270285294,0.04323786,3470.0,3469.5,0.015]
[1736270285455,2.88238,3469.4,3468.3,0.57683762]
[1736270285657,0.55,3469.3,3468.4,1.6008]
[1736270285859,0.0075,3469.0,3468.4,1.6008]
[1736270286063,0.0075,3469.0,3468.5,0.0075]
[1736270286249,0.55,3469.3,3468.4,1.6008]
[1736270286575,1.5218,3468.9,3468.0,0.02882915]
[1736270286764,0.0075,3468.3,3468.1,0.16037292]
[1736270286969,0.0075,3468.3,3468.2,0.0075]
[1736270286970,3.0075,3468.3,3468.2,0.0075]
[1736270287146,3.05073786,3468.3,3468.2,0.0075]
[1736270287352,3.05073786,3468.3,3468.2,0.015]
[1736270287572,3.05073786,3468.3,3468.2,0.0075]
[1736270288154,0.05073786,3468.3,3468.2,0.0075]
[1736270288481,0.05073786,3468.3,3468.0,0.015]
[1736270288678,0.05073786,3468.3,3468.0,0.0075]
[1736270288993,0.0075,3468.1,3468.0,0.0075]
[1736270289571,0.0075,3468.1,3468.0,0.16574]
[1736270289774,0.05073786,3468.1,3468.0,0.16574]
[1736270289971,0.04323786,3468.1,3468.0,0.16574]
[1736270290208,3.5575,3468.5,3468.0,0.16574]
[1736270290412,0.04259855,3468.1,3468.0,0.16574]
[1736270290552,2.88327,3468.3,3468.0,0.0075]
[1736270290871,2.88293,3468.7,3467.5,1.5296]
[1736270290872,2.92595855,3468.2,3467.5,1.5296]
[1736270291492,2.92595855,3468.2,3467.7,0.015]
[1736270291813,0.04259855,3468.2,3467.8,0.0075]